bitfinex/quotes_SOLUSD_20250204
["timestamp","ask_amount","ask_price","bid_price","bid_amount"]
[1738649015287,0.03,205.39,205.36,27.332538]
[1738649016798,0.03,205.39,205.36,32.201938]
[1738649017004,0.03,205.39,205.36,27.332538]
[1738649017891,0.03,205.39,205.34,27.332538]
[1738649018084,0.03,205.39,205.34,32.202438]
[1738649018724,0.03,205.39,205.38,13.41184853]
[1738649019233,0.03,205.39,205.38,0.35900399]
[1738649019800,0.03,205.39,205.37,27.332538]
[1738649020113,0.03,205.39,205.38,0.61020896]
[1738649020295,27.332538,205.56,205.42,13.32808]
[1738649020495,4.864,205.6,205.42,13.32808]
[1738649020496,32.196538,205.6,205.52,27.332538]
[1738649020700,27.332538,205.58,205.5,27.332538]
[1738649021394,27.332538,205.6,205.52,27.332538]
[1738649021802,27.332538,205.62,205.54,27.332538]
[1738649021990,32.345338,205.63,205.55,27.332538]
[1738649022617,37.208438,205.63,205.57,27.332538]
[1738649022799,5.0128,205.63,205.57,27.332538]
[1738649023001,27.332538,205.61,205.54,27.332538]
[1738649023205,27.332538,205.61,205.48,12.41728]
[1738649023206,27.332538,205.62,205.55,27.332538]
[1738649024014,5.0128,205.63,205.57,27.332538]
[1738649024321,0.03,205.61,205.55,27.332538]
[1738649025117,0.03,205.61,205.56,27.332538]
[1738649025422,0.03,205.61,205.59,27.332538]
[1738649026022,0.03,205.61,205.58,27.332538]
[1738649026198,0.03,205.61,205.57,27.332538]
[1738649026525,0.03,205.61,205.58,27.332538]
[1738649026898,0.03,205.61,205.57,27.332538]
[1738649028210,0.03,205.61,205.59,27.332538]
[1738649028402,0.03,205.61,205.6,27.332538]
[1738649029226,0.03,205.61,205.6,27.458028]
[1738649029431,0.03,205.61,205.6,68.32790453]
[1738649029623,0.03,205.61,205.6,68.68488351]
[1738649030326,0.03,205.61,205.6,73.54868351]
[1738649031041,0.03,205.61,205.6,45.60818653]
[1738649031810,0.03,205.61,205.6,73.19170453]
[1738649032225,0.03,205.61,205.6,73.54855181]
[1738649033159,27.332538,205.74,205.62,0.25098]
[1738649033350,4.8603,205.75,205.67,27.332538]
[1738649033520,32.158238,205.76,205.67,27.332538]
[1738649033713,4.86,205.77,205.71,27.332538]
[1738649034225,4.86,205.77,205.65,0.25098]
[1738649034226,27.332538,205.72,205.65,27.332538]
[1738649034431,27.332538,205.71,205.64,27.332538]
[1738649034610,27.332538,205.73,205.64,27.332538]
[1738649034816,27.332538,205.72,205.64,27.332538]
[1738649035237,27.332538,205.74,205.66,27.332538]
[1738649035416,27.332538,205.73,205.65,27.332538]
[1738649035617,27.332538,205.74,205.66,27.332538]
[1738649035838,27.332538,205.75,205.67,27.332538]
[1738649036137,27.332538,205.75,205.68,27.332538]
[1738649036347,4.8605,205.74,205.68,27.332538]
[1738649037824,27.332538,205.71,205.63,27.332538]
[1738649038023,27.332538,205.72,205.65,27.332538]
[1738649038233,32.193038,205.74,205.67,27.332538]
[1738649038569,4.8605,205.74,205.69,27.332538]
[1738649038774,4.8605,205.74,205.68,27.332538]
[1738649039066,4.8605,205.74,205.69,27.332538]
[1738649039370,27.332538,205.73,205.65,27.332538]
[1738649039717,27.332538,205.73,205.66,27.332538]
[1738649039955,32.193038,205.74,205.67,27.332538]
[1738649040335,4.8609,205.72,205.66,27.332538]
[1738649040747,4.8609,205.72,205.59,0.3568174]
[1738649040748,27.332538,205.67,205.59,27.332538]
[1738649040992,27.332538,205.64,205.57,27.332538]
[1738649041190,27.332538,205.63,205.55,27.332538]
[1738649041485,17.9463,205.7,205.62,27.332538]
[1738649041786,17.9463,205.7,205.57,0.25098]
[1738649041941,27.332538,205.68,205.61,27.332538]
[1738649042140,27.332538,205.64,205.57,27.332538]
[1738649042375,4.8628,205.64,205.59,27.332538]
[1738649042543,32.195338,205.64,205.57,27.332538]
[1738649043265,4.8625,205.66,205.61,27.332538]
[1738649043467,4.8625,205.66,205.59,27.332538]
[1738649043671,4.9479,205.7,205.65,27.332538]
[1738649043840,5.0357,205.76,205.68,27.332538]
[1738649044245,4.8604,205.75,205.7,27.332538]
[1738649044474,5.0357,205.76,205.7,27.332538]
[1738649045174,5.0357,205.76,205.68,27.332538]
[1738649045343,5.0357,205.76,205.7,27.332538]
[1738649046099,27.332538,205.75,205.68,27.332538]
[1738649046383,5.0357,205.76,205.7,27.332538]
[1738649046690,5.0357,205.76,205.72,27.332538]
[1738649047887,27.332538,205.75,205.68,27.332538]
[1738649048067,27.332538,205.75,205.67,27.332538]
[1738649048264,5.0357,205.76,205.71,27.332538]
[1738649048479,17.401,205.82,205.75,27.332538]
[1738649048691,17.401,205.82,205.76,27.332538]
[1738649049064,44.733538,205.82,205.75,27.332538]
[1738649049291,44.733538,205.82,205.7,27.332538]
[1738649049292,4.8514,205.84,205.8,27.332538]
[1738649049792,37.042138,205.84,205.76,27.332538]
[1738649049966,27.332538,205.82,205.74,27.332538]
[1738649050479,9.7096,205.84,205.77,27.332538]
[1738649050671,27.332538,205.83,205.76,27.332538]
[1738649050857,37.042138,205.84,205.76,27.332538]
[1738649051059,37.042138,205.84,205.71,4.8612]
[1738649051060,9.7096,205.84,205.77,27.332538]
[1738649051285,27.332538,205.83,205.75,27.332538]
[1738649051492,27.332538,205.78,205.69,27.332538]
[1738649051672,27.332538,205.74,205.65,27.332538]
[1738649051874,27.332538,205.72,205.63,27.332538]
[1738649052471,4.8612,205.71,205.65,27.332538]
[1738649052676,4.8612,205.71,205.63,27.332538]
[1738649052891,28.24417442,205.7,205.61,27.395538]
[1738649053067,27.332538,205.7,205.61,27.395538]
[1738649053264,9.4978,205.71,205.63,27.332538]
[1738649054470,4.8608,205.73,205.67,27.332538]
[1738649054669,4.6875,205.77,205.71,27.332538]
[1738649054870,12.8589,205.8,205.75,27.332538]
[1738649055094,4.8586,205.82,205.75,27.332538]
[1738649055391,9.5459,205.83,205.77,27.332538]
[1738649055767,4.6875,205.83,205.79,27.332538]
[1738649056393,4.6875,205.83,205.77,27.332538]
[1738649056598,4.8586,205.82,205.77,27.332538]
[1738649057107,9.5459,205.83,205.77,27.332538]
[1738649057407,27.332538,205.82,205.75,27.332538]
[1738649058070,4.8584,205.83,205.75,27.332538]
[1738649058994,27.332538,205.86,205.79,27.332538]
[1738649059382,4.8574,205.87,205.81,27.332538]
[1738649059795,27.332538,205.94,205.86,27.332538]
[1738649059990,32.188338,205.94,205.86,27.332538]
[1738649060192,27.332538,205.96,205.86,27.332538]
[1738649060400,27.332538,205.96,205.88,27.332538]
[1738649060812,32.187938,205.96,205.88,27.332538]
[1738649061289,27.332538,205.96,205.88,32.189638]
[1738649062121,27.332538,205.96,205.88,27.332538]
[1738649062305,32.217838,205.96,205.88,27.332538]
[1738649063302,0.91052209,205.95,205.82,4.8584]
[1738649063511,0.91052209,205.95,205.83,27.332538]
[1738649063512,27.332538,205.92,205.83,27.332538]
[1738649063811,27.332538,205.9,205.81,27.332538]
[1738649063998,27.332538,205.94,205.85,27.332538]
[1738649064199,27.332538,205.94,205.87,27.332538]
[1738649064445,27.332538,205.94,205.85,27.332538]
[1738649065311,4.8557,205.95,205.87,27.332538]
[1738649065517,27.362538,205.96,205.87,27.332538]
[1738649065698,27.362538,205.96,205.81,17.3612375]
[1738649065699,27.362538,205.96,205.89,27.332538]
[1738649066207,0.03,205.96,205.89,27.332538]
[1738649066413,32.217838,205.96,205.89,27.332538]
[1738649066614,27.332538,205.92,205.85,27.332538]
[1738649066790,27.332538,205.94,205.85,27.332538]
[1738649066997,32.217838,205.96,205.87,27.332538]
[1738649067201,27.332538,205.94,205.87,27.332538]
[1738649067397,27.332538,205.94,205.85,27.332538]
[1738649068639,32.188438,205.94,205.85,27.332538]
[1738649069597,27.332538,205.92,205.85,27.332538]
[1738649069796,27.332538,205.92,205.83,27.332538]
[1738649070107,32.188838,205.92,205.83,32.190838]
[1738649070529,27.332538,205.9,205.83,27.332538]
[1738649070731,27.332538,205.88,205.79,27.332538]
[1738649071241,27.332538,205.88,205.81,27.332538]
[1738649071408,27.332538,205.88,205.79,27.332538]
[1738649071739,27.332538,205.86,205.77,27.332538]
[1738649071909,4.8579,205.85,205.77,27.332538]
[1738649072113,4.8579,205.85,205.77,32.192138]
[1738649072315,32.190238,205.86,205.77,32.192138]
[1738649072630,4.8577,205.86,205.79,27.332538]
[1738649072812,32.190238,205.86,205.79,27.332538]
[1738649073630,32.190238,205.86,205.77,32.192238]
[1738649074039,32.190238,205.86,205.77,27.332538]
[1738649074219,32.190238,205.86,205.77,32.192238]
[1738649074423,32.190238,205.86,205.77,27.332538]
[1738649074621,27.332538,205.84,205.77,27.332538]
[1738649074828,27.332538,205.82,205.73,27.332538]
[1738649075615,27.332538,205.8,205.71,27.332538]
[1738649075822,27.332538,205.76,205.69,52.44]
[1738649076036,27.332538,205.8,205.73,27.332538]
[1738649076238,27.332538,205.83,205.75,27.332538]
[1738649076722,27.332538,205.81,205.73,27.332538]
[1738649076931,27.332538,205.81,205.75,27.332538]
[1738649077525,27.332538,205.83,205.75,27.332538]
[1738649078030,27.332538,205.83,205.75,32.192738]
[1738649078226,4.8577,205.86,205.79,27.332538]
[1738649078720,37.103938,205.87,205.79,27.332538]
[1738649079648,27.332538,205.85,205.77,27.332538]
[1738649079851,27.332538,205.85,205.7,32.193938]
[1738649080027,37.103938,205.87,205.79,27.332538]
[1738649080437,0.91096905,205.86,205.77,27.332538]
[1738649080756,27.332538,205.85,205.77,27.332538]
[1738649081127,38.01498361,205.87,205.77,27.332538]
[1738649081751,37.103938,205.87,205.79,27.332538]
[1738649081921,4.9139,205.87,205.81,27.332538]
[1738649082122,27.332538,205.91,205.83,27.332538]
[1738649082333,37.244838,205.93,205.85,27.332538]
[1738649082638,32.388738,205.93,205.85,27.332538]
[1738649082849,37.244738,205.93,205.85,27.332538]
[1738649083516,27.332538,205.91,205.83,27.332538]
[1738649083723,27.332538,205.87,205.79,27.332538]
[1738649084024,27.332538,205.89,205.81,27.332538]
[1738649084224,27.332538,205.93,205.85,27.332538]
[1738649084533,0.03,205.96,205.8,27.332538]
[1738649084534,27.332538,205.95,205.87,27.332538]
[1738649084849,0.03,205.96,205.87,27.332538]
[1738649085052,0.03,205.96,205.89,27.332538]
[1738649085850,0.03,205.96,205.9,4.8567]
[1738649086829,0.03,205.96,205.95,27.332538]
[1738649088160,0.03,205.96,205.92,27.332538]
[1738649090533,27.332538,205.94,205.85,27.332538]
[1738649091481,27.332538,205.92,205.85,27.332538]
[1738649091974,0.91072195,205.91,205.83,27.332538]
[1738649092142,27.332538,205.9,205.81,27.332538]
[1738649092343,27.332538,205.9,205.83,27.332538]
[1738649092656,4.8565,205.91,205.83,27.332538]
[1738649093743,27.332538,205.9,205.83,27.332538]
[1738649093944,4.8565,205.91,205.83,27.332538]
[1738649094872,4.8565,205.91,205.83,32.190838]
[1738649095267,27.332538,205.92,205.83,32.190838]
[1738649095647,32.188838,205.92,205.83,32.190838]
[1738649095854,32.188438,205.94,205.85,27.332538]
[1738649096263,0.03,205.96,205.92,27.332538]
[1738649096554,0.03,205.96,205.94,27.332538]
[1738649097772,0.03,205.96,205.95,4.8555]
[1738649098680,0.0001,205.96,205.95,4.8555]
[1738649098874,0.0001,205.96,205.95,18.26734853]
[1738649099683,0.0001,205.96,205.95,4.8555]
[1738649100282,0.0001,205.96,205.9,27.332538]
[1738649100472,27.332538,205.94,205.86,27.332538]
[1738649100659,27.332538,205.94,205.87,7.85]
[1738649100861,27.332538,205.94,205.86,27.332538]
[1738649101381,0.91057083,205.93,205.86,27.332538]
[1738649101694,28.24338697,205.96,205.86,27.332538]
[1738649101852,4.8555,205.95,205.86,27.332538]
[1738649102051,28.24321476,205.94,205.86,27.332538]
[1738649102268,27.332538,205.92,205.84,27.332538]
[1738649102470,0.91080286,205.91,205.84,27.332538]
[1738649102760,28.24338914,205.94,205.86,27.332538]
[1738649102962,27.332538,205.92,205.84,27.332538]
[1738649103175,0.91080141,205.91,205.84,27.332538]
[1738649103385,27.332538,205.9,205.82,27.332538]
[1738649103680,0.91094206,205.89,205.82,27.332538]
[1738649103862,4.8571,205.88,205.82,27.332538]
[1738649104059,27.332538,205.86,205.78,27.332538]
[1738649104656,4.8069,205.88,205.82,27.332538]
[1738649105482,33.05035695,205.88,205.8,27.332538]
[1738649105685,4.8069,205.88,205.8,27.332538]
[1738649106291,4.8069,205.88,205.84,27.332538]
[1738649106471,4.7692,205.95,205.86,27.332538]
[1738649106799,4.7692,205.95,205.89,27.332538]
[1738649107307,4.853,206.06,205.94,27.332538]
[1738649107498,5.7486461,206.09,206.03,27.332538]
[1738649107702,5.7486461,206.09,205.91,0.35449753]
[1738649107703,32.170938,206.09,206.01,27.332538]
[1738649108000,27.332538,206.05,205.97,27.332538]
[1738649108387,27.332538,206.05,205.95,0.35390342]
[1738649108388,27.332538,206.05,205.95,27.332538]
[1738649108579,27.332538,206.03,205.95,27.332538]
[1738649108906,27.332538,206.03,205.93,27.332538]
[1738649109199,0.91030402,206.02,205.93,27.332538]
[1738649109406,0.03,205.96,205.93,27.332538]
[1738649109990,0.03,205.96,205.93,32.188438]
[1738649110405,0.03,205.96,205.93,27.332538]
[1738649111192,0.03,205.96,205.93,32.188438]
[1738649111380,0.03,205.96,205.95,27.332538]
[1738649111891,0.03,205.96,205.93,27.332538]
[1738649113006,0.91027573,206.02,205.95,27.332538]
[1738649113314,4.8384,206.09,206.01,27.332538]
[1738649114207,27.332538,206.02,205.93,27.332538]
[1738649114516,27.332538,206.02,205.87,12.1433]
[1738649114517,27.332538,205.98,205.89,27.332538]
[1738649114697,27.332538,206.02,205.93,27.332538]
[1738649114898,27.332538,205.98,205.89,27.332538]
[1738649115085,27.332538,206.0,205.91,27.332538]
[1738649115412,27.332538,205.96,205.88,4.8571]
[1738649115706,1.23978765,206.06,205.91,27.332538]
[1738649115707,1.03606648,206.03,205.91,27.332538]
[1738649115910,1.03606648,206.03,205.86,12.1439]
[1738649115911,27.332538,206.02,205.93,27.332538]
[1738649116119,27.332538,206.02,205.93,32.188438]
[1738649116289,27.332538,206.06,205.97,27.332538]
[1738649116488,28.24274403,206.08,205.99,27.332538]
[1738649116722,4.8384,206.09,206.03,27.332538]
[1738649117100,4.8384,206.09,206.01,27.332538]
[1738649117506,4.8384,206.09,206.03,27.332538]
[1738649118602,27.332538,206.14,206.05,27.332538]
[1738649118803,28.24237956,206.14,206.05,27.332538]
[1738649118995,27.332538,206.13,206.04,27.332538]
[1738649119191,27.332538,206.13,206.06,27.332538]
[1738649119619,0.90987886,206.12,206.04,27.332538]
[1738649120123,27.332538,206.11,206.04,27.332538]
[1738649120309,0.03,206.17,206.09,27.332538]
[1738649120508,27.332538,206.16,206.08,27.332538]
[1738649120699,0.03,206.17,206.1,27.332538]
[1738649120923,0.03,206.17,206.12,27.332538]
[1738649121116,0.03,206.17,206.14,27.332538]
[1738649121439,0.03,206.17,206.12,27.332538]
[1738649122622,4.9773,206.21,206.14,27.332538]
[1738649123139,4.9773,206.21,206.11,4.8517]
[1738649123140,4.9773,206.21,206.16,27.332538]
[1738649123319,4.9773,206.21,206.18,27.332538]
[1738649123524,33.09034884,206.26,206.18,27.332538]
[1738649124579,27.332538,206.22,206.14,27.332538]
[1738649124725,27.332538,206.16,206.06,27.332538]
[1738649124927,27.332538,206.1,206.02,27.332538]
[1738649125108,27.332538,206.1,206.02,32.186338]
[1738649125442,27.332538,206.12,206.04,27.332538]
[1738649125815,27.332538,206.12,206.04,32.185838]
[1738649126053,27.332538,206.14,206.06,27.332538]
[1738649126210,0.90985247,206.13,206.06,27.332538]
[1738649127415,28.24236391,206.18,206.1,27.332538]
[1738649127750,4.8489,206.24,206.17,27.332538]
[1738649127908,5.62792784,206.25,206.19,27.332538]
[1738649128109,4.7182,206.25,206.21,27.332538]
[1738649128935,32.96003857,206.25,206.17,27.332538]
[1738649129137,27.332538,206.23,206.15,27.332538]
[1738649129342,27.332538,206.21,206.13,27.332538]
[1738649129548,27.332538,206.19,206.11,5.98]
[1738649129749,32.182038,206.21,206.11,38.164138]
[1738649129951,27.332538,206.21,206.13,27.332538]
[1738649130113,5.75881974,206.23,206.11,10.8316]
[1738649130114,28.24225774,206.23,206.16,27.332538]
[1738649130419,5.62771964,206.25,206.18,27.332538]
[1738649130626,5.62771964,206.25,206.19,43.9752415]
[1738649131011,54.45146114,206.25,206.17,43.9752415]
[1738649131214,43.9752415,206.23,206.15,43.9752415]
[1738649131428,43.9752415,206.23,206.17,43.9752415]
[1738649131649,0.90948184,206.24,206.17,43.9752415]
[1738649132246,4.7182,206.25,206.21,43.9752415]
[1738649132814,20.0,206.18,206.1,43.9752415]
[1738649133013,44.88502553,206.17,206.1,43.9752415]
[1738649133224,44.88502553,206.17,206.08,43.9752415]
[1738649133419,4.8506,206.16,206.08,43.9752415]
[1738649133631,43.9752415,206.13,206.04,43.9752415]
[1738649134137,43.9752415,206.13,206.06,43.9752415]
[1738649134825,49.73603822,206.15,206.06,43.9752415]
[1738649135713,44.88513822,206.15,206.06,43.9752415]
[1738649136052,43.9752415,206.21,206.12,43.9752415]
[1738649136351,5.75883948,206.22,206.14,43.9752415]
[1738649136523,4.8493,206.22,206.14,43.9752415]
[1738649136717,43.9752415,206.23,206.16,43.9752415]
[1738649137035,48.8242415,206.23,206.16,43.9752415]
[1738649137233,0.90947092,206.22,206.14,43.9752415]
[1738649137542,49.73371116,206.23,206.16,43.9752415]
[1738649137744,49.73370529,206.23,206.16,43.9752415]
[1738649138152,54.4515101,206.25,206.16,43.9752415]
[1738649138718,43.9752415,206.23,206.16,43.9752415]
[1738649138915,0.90946904,206.22,206.16,43.9752415]
[1738649139119,43.9752415,206.21,206.14,43.9752415]
[1738649139351,44.88471173,206.23,206.14,43.9752415]
[1738649139553,43.9752415,206.21,206.14,43.9752415]
[1738649139761,53.5419415,206.25,206.16,43.9752415]
[1738649140062,43.9752415,206.32,206.23,43.9752415]
[1738649140266,43.9752415,206.34,206.25,43.9752415]
[1738649140429,43.9752415,206.29,206.2,43.9752415]
[1738649140862,48.9835415,206.22,206.08,43.9752415]
[1738649141058,43.9752415,206.18,206.08,43.9752415]
[1738649141263,0.90969657,206.17,206.08,43.9752415]
[1738649141450,5.0083,206.22,206.16,43.9752415]
[1738649141652,5.0083,206.22,206.1,43.9752415]
[1738649141653,5.0083,206.22,206.18,43.9752415]
[1738649141961,5.0083,206.22,206.16,43.9752415]
[1738649142156,43.9752415,206.19,206.12,43.9752415]
[1738649142341,44.88484924,206.19,206.1,43.9752415]
[1738649142863,0.90967372,206.24,206.16,43.9752415]
[1738649143072,0.90925413,206.28,206.2,43.9752415]
[1738649143234,0.90910196,206.28,206.2,43.9752415]
[1738649143441,0.90929174,206.27,206.2,43.9752415]
[1738649143749,44.88453324,206.27,206.2,43.9752415]
[1738649143946,43.9752415,206.25,206.17,5.96]
[1738649144368,44.88459321,206.25,206.17,5.96]
[1738649144663,43.9752415,206.23,206.17,5.96]
[1738649144963,43.9752415,206.23,206.16,48.8257415]
[1738649144964,43.9752415,206.21,206.13,43.9752415]
[1738649145133,43.9752415,206.21,206.13,48.8264415]
[1738649145329,43.9752415,206.23,206.15,43.9752415]
[1738649145900,0.90946705,206.25,206.19,43.9752415]
[1738649146055,48.8741415,206.3,206.22,43.9752415]
[1738649146264,0.90911768,206.29,206.22,43.9752415]
[1738649146566,43.9752415,206.28,206.2,43.9752415]
[1738649146865,43.9752415,206.26,206.18,48.8252415]
[1738649147287,43.9752415,206.28,206.2,43.9752415]
[1738649147446,0.90925937,206.27,206.18,48.8252415]
[1738649147643,5.75735937,206.27,206.18,48.8252415]
[1738649147872,49.73230429,206.28,206.18,48.8252415]
[1738649148056,49.73230429,206.28,206.2,43.9752415]
[1738649148057,43.9752415,206.28,206.2,43.9752415]
[1738649148480,49.51602688,206.36,206.26,43.9752415]
[1738649148686,49.51602688,206.36,206.21,6.3121761]
[1738649148687,4.6317,206.36,206.28,43.9752415]
[1738649148855,4.6317,206.36,206.3,43.9752415]
[1738649149453,4.6317,206.36,206.32,43.9752415]
[1738649149762,4.6317,206.36,206.23,0.35152672]
[1738649149763,4.6317,206.36,206.3,43.9752415]
[1738649150686,43.9752415,206.38,206.3,43.9752415]
[1738649150862,43.9752415,206.38,206.31,4.847]
[1738649151266,43.9752415,206.36,206.28,43.9752415]
[1738649151558,56.7328415,206.4,206.32,43.9752415]
[1738649151783,43.9752415,206.38,206.32,43.9752415]
[1738649152780,43.9752415,206.38,206.3,43.9752415]
[1738649153080,43.9752415,206.38,206.25,16.9696]
[1738649153081,43.9752415,206.38,206.31,43.9752415]
[1738649153276,43.9752415,206.35,206.27,43.9752415]
[1738649153570,43.9752415,206.34,206.27,43.9752415]
[1738649153749,43.9752415,206.32,206.23,43.9752415]
[1738649153950,43.9752415,206.32,206.24,43.9752415]
[1738649154354,43.9752415,206.38,206.3,43.9752415]
[1738649154561,43.9752415,206.39,206.31,43.9752415]
[1738649155256,43.9752415,206.39,206.31,48.8222415]
[1738649156175,43.9752415,206.38,206.31,4.847]
[1738649157084,43.9752415,206.38,206.31,43.9752415]
[1738649157374,4.6954,206.42,206.25,12.1208]
[1738649157375,4.6954,206.42,206.36,43.9752415]
[1738649157778,4.6954,206.42,206.35,43.9752415]
[1738649157973,43.9752415,206.41,206.33,43.9752415]
[1738649158302,43.9752415,206.38,206.3,43.9752415]
[1738649158460,43.9752415,206.37,206.3,43.9752415]
[1738649158661,43.9752415,206.38,206.31,43.9752415]
[1738649159181,43.9752415,206.39,206.31,4.8469]
[1738649159389,43.9752415,206.4,206.32,43.9752415]
[1738649159562,0.03,206.38,206.32,43.9752415]
[1738649159879,0.03,206.38,206.31,43.9752415]
[1738649160081,44.0052415,206.38,206.31,43.9752415]
[1738649160271,0.03,206.38,206.31,43.9752415]
[1738649160467,43.9752415,206.37,206.3,43.9752415]
[1738649160803,43.9752415,206.32,206.24,43.9752415]
[1738649161089,43.9752415,206.28,206.2,43.9752415]
[1738649161296,0.93903518,206.38,206.23,20.0]
[1738649161492,0.03,206.38,206.24,13.41184853]
[1738649161664,0.03,206.38,206.33,43.9752415]
[1738649162085,4.8754,206.38,206.33,43.9752415]
[1738649162259,5.78410192,206.38,206.31,43.9752415]
[1738649162460,0.90878417,206.37,206.31,43.9752415]
[1738649162681,0.90887218,206.37,206.3,27.03349825]
[1738649162862,0.90882976,206.36,206.3,27.03349825]
[1738649163068,32.81772801,206.38,206.3,27.03349825]
[1738649163366,27.03349825,206.32,206.24,27.03349825]
[1738649163567,27.03349825,206.3,206.22,27.03349825]
[1738649163887,27.03349825,206.26,206.21,5.94]
[1738649164280,27.03349825,206.28,206.21,5.94]
[1738649164487,0.90925037,206.27,206.21,5.94]
[1738649164803,27.03349825,206.24,206.16,27.03349825]
[1738649164973,27.94274862,206.27,206.19,27.03349825]
[1738649165383,27.03349825,206.23,206.17,27.03349825]
[1738649165675,27.03349825,206.25,206.17,27.03349825]
[1738649165923,0.90937418,206.24,206.17,27.03349825]
[1738649166215,4.8481,206.27,206.19,27.03349825]
[1738649166216,32.79097243,206.27,206.19,27.03349825]
[1738649166996,27.03349825,206.25,206.17,27.03349825]
[1738649167173,5.71702224,206.3,206.23,27.03349825]
[1738649167492,9.6549,206.3,206.25,27.03349825]
[1738649167695,9.6549,206.3,206.23,27.03349825]
[1738649168066,8.35720092,206.29,206.23,27.03349825]
[1738649169294,40.23829917,206.29,206.21,27.03349825]
[1738649169471,27.03349825,206.27,206.19,27.03349825]
[1738649169675,27.03349825,206.25,206.17,27.03349825]
[1738649169879,27.03349825,206.27,206.19,27.03349825]
[1738649170377,0.90929718,206.26,206.19,27.03349825]
[1738649170572,27.03349825,206.25,206.17,27.03349825]
[1738649170778,27.03349825,206.27,206.19,27.03349825]
[1738649170999,36.29992158,206.29,206.23,27.03349825]
[1738649171194,8.35720092,206.29,206.23,27.03349825]
[1738649171380,13.20470092,206.29,206.23,27.03349825]
[1738649171586,27.03349825,206.24,206.17,27.03349825]
[1738649172403,0.90939217,206.23,206.17,27.03349825]
[1738649172703,0.90939217,206.23,206.15,27.03349825]
[1738649172900,5.75829217,206.23,206.15,31.88429825]
[1738649173098,27.03349825,206.22,206.15,27.03349825]
[1738649173598,27.03349825,206.26,206.19,27.03349825]
[1738649173807,27.94291295,206.28,206.21,27.03349825]
[1738649174406,0.90922188,206.28,206.23,27.03349825]
[1738649174587,27.94272013,206.28,206.21,27.03349825]
[1738649174786,27.94272013,206.28,206.19,27.03349825]
[1738649174976,4.848,206.27,206.19,27.03349825]
[1738649175180,4.848,206.27,206.19,31.88329825]
[1738649175380,8.35720092,206.29,206.23,27.03349825]
[1738649175779,8.35720092,206.29,206.25,27.03349825]
[1738649176679,8.35720092,206.29,206.27,27.03349825]
[1738649176895,8.35720092,206.29,206.24,27.03349825]
[1738649177219,8.35720092,206.29,206.22,27.03349825]
[1738649178315,8.35720092,206.29,206.26,27.03349825]
[1738649178511,8.35720092,206.29,206.28,27.03349825]
[1738649178920,8.35720092,206.29,206.27,4.8479]
[1738649179108,8.35720092,206.29,206.28,27.03349825]
[1738649181997,9.2e-07,206.29,206.28,54.0669965]
[1738649182198,9.2e-07,206.29,206.28,57.66794362]
[1738649182398,0.03,206.38,206.28,30.63444537]
[1738649182598,0.03,206.38,206.34,27.03349825]
[1738649183222,0.03,206.38,206.32,27.03349825]
[1738649184122,0.03,206.38,206.33,3.60094712]
[1738649186229,0.03,206.38,206.32,27.03349825]
[1738649186519,27.97218483,206.38,206.3,27.03349825]
[1738649186723,27.06349825,206.38,206.3,27.03349825]
[1738649187024,0.03,206.38,206.32,27.03349825]
[1738649187522,0.03,206.38,206.34,27.03349825]
[1738649188600,0.03,206.38,206.35,4.8461]
[1738649188801,0.03,206.38,206.32,27.03349825]
[1738649190530,0.03,206.38,206.32,31.88009825]
[1738649190707,0.03,206.38,206.26,27.03349825]
[1738649190910,27.03349825,206.32,206.24,31.88219825]
[1738649191095,27.03349825,206.34,206.26,27.03349825]
[1738649191300,27.06349825,206.38,206.3,27.03349825]
[1738649191628,27.03349825,206.36,206.26,27.03349825]
[1738649191811,27.03349825,206.34,206.26,27.03349825]
[1738649192004,27.03349825,206.34,206.27,3.60483574]
[1738649192328,27.03349825,206.32,206.27,3.60483574]
[1738649192630,27.03349825,206.3,206.27,3.60483574]
[1738649193204,27.03349825,206.28,206.27,3.60483574]
[1738649194120,27.03349825,206.28,206.19,3.60483574]